bitfinex/quotes_ETHUSD_20260313
["timestamp","ask_amount","ask_price","bid_price","bid_amount"]
[1773394813758,0.002,2104.6,2104.3,1.618]
[1773394813963,0.002,2104.6,2104.3,2.20430266]
[1773394814176,0.002,2104.6,2104.4,0.58630266]
[1773394814581,0.002,2104.6,2104.4,1.618]
[1773394816088,0.002,2104.6,2104.3,0.58630266]
[1773394816588,0.60951187,2104.5,2104.1,2.85478797]
[1773394816760,0.03760518,2104.6,2104.2,0.58630266]
[1773394816965,0.64711705,2104.6,2104.2,0.58630266]
[1773394817891,0.64711705,2104.6,2104.3,1.618]
[1773394818091,1.18793062,2104.5,2104.3,1.618]
[1773394821172,0.55297983,2104.4,2104.1,0.001]
[1773394822679,1.18804352,2104.3,2104.2,1.619]
[1773394823196,1.1027326,2104.3,2104.2,1.619]
[1773394825794,1.65771243,2104.3,2104.2,1.619]
[1773394827223,1.65771243,2104.3,2104.1,0.001]
[1773394827497,1.65771243,2104.3,2104.2,1.62]
[1773394828803,1.65771243,2104.3,2104.1,0.001]
[1773394830401,0.55297983,2104.2,2104.1,0.001]
[1773394830900,0.55297983,2104.2,2104.1,1.621]
[1773394831107,0.55297983,2104.2,2103.8,2.81270619]
[1773394831316,1.18815645,2104.1,2103.8,2.81270619]
[1773394831609,1.18815645,2104.1,2103.9,0.54522088]
[1773394832791,1.18815645,2104.1,2104.0,1.621]
[1773394833203,4.75262582,2104.2,2104.0,2.16622088]
[1773394833424,5.30560565,2104.2,2104.0,1.621]
[1773394834196,5.30560565,2104.2,2103.8,0.54522088]
[1773394835792,5.30560565,2104.2,2103.9,1.621]
[1773394836095,5.30560565,2104.2,2103.9,2.16622088]
[1773394836490,5.30560565,2104.2,2103.9,0.54522088]
[1773394836813,5.30560565,2104.2,2104.0,1.622]
[1773394837194,5.30560565,2104.2,2103.8,0.54522088]
[1773394837702,5.30560565,2104.2,2104.0,0.001]
[1773394838418,5.30760565,2104.2,2104.0,0.001]
[1773394838616,0.55297983,2104.1,2104.0,0.001]
[1773394838918,0.55297983,2104.1,2104.0,1.623]
[1773394839699,1.74113628,2104.1,2104.0,1.623]
[1773394840416,1.74113628,2104.1,2104.0,1.624]
[1773394841220,0.55297983,2104.0,2103.6,0.001]
[1773394841916,1.76981016,2103.9,2103.6,0.001]
[1773394842293,0.58154076,2103.8,2103.6,0.001]
[1773394843122,0.58154076,2103.8,2103.5,0.001]
[1773394843494,0.58154076,2103.8,2103.5,0.02554648]
[1773394843695,1.18825876,2104.0,2103.6,0.02454648]
[1773394844219,1.76979952,2104.0,2103.6,0.02454648]
[1773394844525,1.18817734,2104.1,2103.7,0.02244997]
[1773394844729,1.7697181,2104.1,2103.7,0.02244997]
[1773394845096,1.7697181,2104.1,2103.8,1.624]
[1773394845625,0.58154076,2104.0,2103.6,0.02032973]
[1773394846048,1.76981016,2103.9,2103.6,0.02032973]
[1773394847521,0.58154076,2103.8,2103.5,0.001]
[1773394847919,0.58154076,2103.8,2103.6,1.625]
[1773394848938,1.76981016,2103.9,2103.6,1.625]
[1773394849437,1.76981016,2103.9,2103.5,0.0150024]
[1773394849626,0.58154076,2103.8,2103.6,1.625]
[1773394850742,1.76989835,2103.8,2103.7,1.625]
[1773394851124,1.76989835,2103.8,2103.5,0.01290437]
[1773394852948,1.76989835,2103.8,2103.6,1.625]
[1773394853845,1.18835759,2103.8,2103.6,1.625]
[1773394854144,0.58296961,2103.7,2103.5,0.001]
[1773394854826,1.18843886,2103.6,2103.5,0.001]
[1773394855021,0.58296961,2103.6,2103.5,0.001]
[1773394855226,1.1884241,2103.7,2103.5,0.001]
[1773394856031,1.77132263,2103.8,2103.5,0.001]
[1773394857142,0.58296961,2103.7,2103.5,0.001]
[1773394860246,1.18843886,2103.6,2103.5,0.001]
[1773394860747,1.18843886,2103.6,2103.5,1.626]
[1773394861045,1.77140847,2103.6,2103.5,1.626]
[1773394861947,1.77123901,2103.9,2103.5,1.626]
[1773394862442,1.77123901,2103.9,2103.6,1.626]
[1773394863544,1.77123901,2103.9,2103.5,0.001]
[1773394863545,0.58296961,2103.8,2103.5,0.001]
[1773394863740,0.58296961,2103.8,2103.3,0.001]
[1773394863741,0.61857479,2103.8,2103.4,1.626]
[1773394864134,0.002,2103.6,2103.4,1.626]
[1773394864339,1.18849536,2103.5,2103.4,1.626]
[1773394864646,1.77343871,2103.6,2103.4,1.626]
[1773394864967,0.002,2103.8,2103.4,1.626]
[1773394864968,0.002,2103.8,2103.4,3.61759247]
[1773394865124,0.002,2103.8,2103.6,0.80306249]
[1773394865322,0.002,2103.8,2103.4,3.61759247]
[1773394867322,0.002,2104.0,2103.6,0.80306249]
[1773394867547,0.002,2104.0,2103.7,0.04753529]
[1773394867757,0.002,2104.2,2103.8,0.80306249]
[1773394868128,1.190107,2104.2,2103.7,0.04753529]
[1773394868324,0.002,2104.2,2103.7,0.04753529]
[1773394868755,0.002,2104.5,2104.0,0.80306249]
[1773394868959,0.002,2104.5,2104.1,2.81615645]
[1773394874567,0.002,2104.5,2104.1,1.628]
[1773394874766,0.002,2104.5,2104.1,2.81615022]
[1773394874970,0.002,2104.5,2104.1,2.86367647]
[1773394877440,0.001,2104.3,2104.2,0.80306249]
[1773394877771,0.002,2104.8,2104.2,8.0306249]
[1773394877937,1.18961276,2105.1,2104.5,0.80306249]
[1773394878144,1.77258237,2105.1,2104.6,1.633]
[1773394878378,1.77256347,2105.1,2104.6,1.633]
[1773394878665,0.002,2105.1,2104.7,0.80306249]
[1773394879169,0.002,2105.1,2104.7,1.99087897]
[1773394879466,0.002,2105.1,2104.7,0.80306249]
[1773394879848,0.58496961,2105.1,2104.7,0.80306249]
[1773394880749,0.58496961,2105.1,2104.8,1.1877613]
[1773394880953,0.002,2105.1,2104.8,1.1877613]
[1773394881153,0.002,2105.1,2104.9,0.80306249]
[1773394881368,0.002,2105.3,2104.9,0.80306249]
[1773394881756,1.77039255,2105.6,2105.1,0.80306249]
[1773394881757,0.002,2105.6,2105.1,0.80306249]
[1773394881959,0.002,2105.6,2105.3,1.31762337]
[1773394882970,0.002,2105.6,2105.3,0.51456088]
[1773394883471,0.54698333,2105.6,2104.9,1.70225677]
[1773394883670,0.54698333,2105.6,2105.0,1.636]
[1773394884674,0.54698333,2105.6,2105.0,2.15056088]
[1773394885556,1.73234975,2105.5,2105.0,2.15056088]
[1773394885868,1.18923495,2105.8,2105.4,0.51456088]
[1773394886058,1.18920189,2105.8,2105.4,0.51456088]
[1773394886469,1.73418522,2105.8,2105.5,1.637]
[1773394886657,0.54698333,2105.8,2105.5,1.637]
[1773394886855,0.54498333,2106.0,2105.7,0.80306249]
[1773394887050,1.73206942,2106.0,2105.6,0.51456088]
[1773394887251,1.73206895,2106.0,2105.6,0.51456088]
[1773394887447,0.54498333,2106.0,2105.6,1.70184483]
[1773394887963,1.73207695,2106.0,2105.6,0.51456088]
[1773394889858,0.54498333,2105.9,2105.5,0.80306249]
[1773394890169,0.002,2105.8,2105.6,1.638]
[1773394891352,0.002,2105.8,2105.4,1.70194761]
[1773394891578,0.002,2105.8,2105.5,1.638]
[1773394892076,0.54698333,2105.8,2105.5,1.638]
[1773394893651,0.54498333,2105.7,2105.4,0.51456088]
[1773394893872,0.54498333,2105.7,2105.2,0.51456088]
[1773394894076,0.54498333,2105.7,2105.3,1.68549916]
[1773394894990,0.54498333,2105.7,2105.4,1.639]
[1773394895164,0.54498333,2105.7,2105.5,0.04749465]
[1773394895359,1.18924116,2105.8,2105.5,0.04749465]
[1773394895563,1.73422449,2105.8,2105.5,0.04749465]
[1773394896364,0.54498333,2105.7,2105.5,0.04749465]
[1773394898484,1.73225948,2105.7,2105.5,0.04749465]
[1773394899474,1.73225948,2105.7,2105.6,1.639]
[1773394899859,1.73225948,2105.7,2105.3,0.56206004]
[1773394900284,1.73225948,2105.7,2105.3,0.51456088]
[1773394900467,0.54498333,2105.6,2105.3,0.51456088]
[1773394900668,1.73229885,2105.6,2105.3,0.51456088]
[1773394901088,1.73229885,2105.6,2105.4,1.639]
[1773394901287,1.73229885,2105.6,2105.3,0.51456088]
[1773394901586,0.54498333,2105.6,2105.5,1.639]
[1773394901762,1.73229336,2105.6,2105.5,1.639]
[1773394901958,4.75080041,2105.8,2105.1,0.51456088]
[1773394901959,0.54498333,2105.7,2105.1,0.51456088]
[1773394902159,0.002,2105.8,2105.4,0.51456088]
[1773394902383,0.002,2105.8,2105.5,0.56205553]
[1773394903292,0.002,2105.8,2105.6,1.639]
[1773394903787,0.002,2106.0,2105.6,3.34087091]
[1773394903990,0.002,2106.0,2105.7,0.56205101]
[1773394904762,1.18909444,2106.0,2105.7,0.56205101]
[1773394905363,1.18909444,2106.0,2105.7,0.04749013]
[1773394905585,0.52427099,2105.9,2105.8,1.639]
[1773394905965,0.52427099,2105.9,2105.5,1.67972406]
[1773394906193,0.52427099,2105.9,2105.6,1.639]
[1773394906563,1.18909444,2106.0,2105.6,2.13039177]
[1773394906791,0.002,2106.0,2105.9,0.49139177]
[1773394907088,1.18899756,2106.2,2105.9,0.49139177]
[1773394907089,0.002,2106.2,2105.9,0.49139177]
[1773394908974,0.52627099,2106.2,2105.9,0.49139177]
[1773394910379,0.52627099,2106.2,2105.7,1.34065353]
[1773394910696,0.52627099,2106.2,2105.8,0.51734424]
[1773394910989,1.71328471,2106.2,2105.8,0.51734424]
[1773394912480,0.50964625,2106.1,2105.9,0.04748563]
[1773394913904,0.50964625,2106.0,2105.9,0.04748563]
[1773394914076,0.50964625,2106.0,2105.7,0.56322419]
[1773394914270,0.50964625,2106.0,2105.8,1.642]
[1773394914495,0.50964625,2106.0,2105.9,0.04748563]
[1773394914895,0.50964625,2106.0,2105.9,1.642]
[1773394915291,1.18705071,2106.1,2105.9,1.642]
[1773394915486,0.50964625,2106.1,2105.9,1.642]
[1773394915699,0.50964625,2106.1,2106.0,0.04748338]
[1773394915903,0.002,2106.2,2106.0,0.04748338]
[1773394916098,0.002,2106.2,2106.1,1.643]
[1773394916285,1.69861804,2106.2,2106.1,1.643]
[1773394916688,0.50964625,2106.1,2105.8,0.04748789]
[1773394916892,0.51164625,2106.0,2105.8,0.04748789]
[1773394917200,0.51164625,2106.0,2105.9,0.001]
[1773394917886,0.51164625,2106.0,2105.9,1.644]
[1773394918287,0.51164625,2106.0,2105.9,0.001]
[1773394918496,1.69873077,2106.0,2105.9,1.645]
[1773394919206,0.50964625,2105.9,2105.6,0.001]
[1773394920184,0.50964625,2105.7,2105.6,0.001]
[1773394920406,0.50964625,2105.7,2105.6,1.645]
[1773394921088,0.50964625,2105.7,2105.5,0.001]
[1773394922206,1.69695628,2105.6,2105.5,0.001]
[1773394922598,1.69695628,2105.6,2105.5,1.646]
[1773394922996,1.69695628,2105.6,2105.5,0.001]
[1773394923198,1.69695628,2105.6,2105.3,0.03664272]
[1773394923596,0.50964625,2105.5,2105.3,0.03664272]
[1773394923783,0.50964625,2105.5,2105.3,0.001]
[1773394924215,1.69706545,2105.5,2105.3,0.001]
[1773394924711,1.69706545,2105.5,2105.4,1.646]
[1773394925283,1.69706545,2105.5,2105.3,0.001]
[1773394926586,0.50964625,2105.4,2105.0,0.001]
[1773394927013,0.50964625,2105.4,2105.1,1.646]
[1773394927316,0.50964625,2105.4,2105.0,0.001]
[1773394927701,0.50964625,2105.4,2105.1,1.646]
[1773394927903,0.50964625,2105.4,2105.0,0.001]
[1773394928113,0.50964625,2105.9,2105.3,0.49475298]
[1773394928319,0.50964625,2105.8,2105.4,0.49475298]
[1773394928499,0.51164625,2106.0,2105.4,0.49475298]
[1773394928717,0.56900329,2105.9,2105.2,1.68056371]
[1773394929031,0.56900329,2105.9,2105.5,1.646]
[1773394929649,0.56900329,2105.9,2105.2,1.68056371]
[1773394929650,0.56900329,2105.9,2105.2,0.49306435]
[1773394929846,0.56900329,2105.9,2105.0,1.92329772]
[1773394930107,0.50964625,2105.9,2105.1,0.49135073]
[1773394930311,0.50964625,2105.7,2105.2,1.67888635]
[1773394930511,0.50964625,2105.7,2105.4,0.001]
[1773394931552,0.50964625,2105.7,2105.4,1.648]
[1773394932250,1.69695538,2105.7,2105.4,1.648]
[1773394932543,0.50964625,2105.6,2105.2,0.49135073]
[1773394934342,1.69700723,2105.6,2105.3,1.648]
[1773394934745,1.18736098,2105.6,2105.3,1.648]
[1773394934950,0.50964625,2105.5,2105.3,1.648]
[1773394936449,1.69706906,2105.4,2105.1,0.001]
[1773394936662,0.50964625,2105.4,2105.1,0.001]
[1773394937037,1.69699843,2105.6,2105.2,0.4795339]
[1773394937656,0.50964625,2105.5,2105.2,0.4795339]
[1773394937861,0.50964625,2105.5,2105.1,0.001]
[1773394938026,0.50964625,2105.5,2105.1,0.47885442]
[1773394938226,0.50964625,2105.5,2105.2,1.649]
[1773394938564,1.69703344,2105.5,2105.2,1.649]
[1773394939462,1.75640176,2105.5,2105.2,1.649]
[1773394940727,1.75640176,2105.5,2105.2,2.12017867]
[1773394940935,1.69703344,2105.5,2105.2,2.12017867]
[1773394942750,1.69703344,2105.5,2105.4,0.001]
[1773394943150,1.18938719,2105.5,2105.4,0.001]
[1773394943647,1.67359685,2105.5,2105.4,0.001]
[1773394945845,0.48620966,2105.5,2105.4,0.001]
[1773394946259,1.7329444,2105.5,2105.4,0.001]
[1773394946456,0.48620966,2105.5,2105.4,0.001]
[1773394946757,0.002,2105.5,2105.4,0.001]
[1773394946955,0.002,2105.5,2105.4,0.46591848]
[1773394947661,0.002,2105.5,2105.4,0.001]
[1773394949639,0.002,2105.5,2105.4,0.46591848]
[1773394950142,0.002,2106.0,2105.5,0.46291848]
[1773394950348,0.002,2106.0,2105.7,0.46291848]
[1773394950660,0.002,2106.0,2105.8,2.11091848]
[1773394953074,0.48620966,2106.0,2105.8,1.648]
[1773394953277,0.50993948,2106.0,2105.5,1.65025357]
[1773394953450,0.50993948,2106.0,2105.8,1.647]
[1773394954054,0.02572982,2106.0,2105.8,1.647]
[1773394955737,0.002,2106.0,2105.8,1.647]
[1773394955933,0.02572982,2106.0,2105.8,1.647]
[1773394956466,0.02572982,2106.0,2105.7,0.46291848]
[1773394956660,0.51193948,2106.0,2105.9,1.647]
[1773394957172,0.004,2106.0,2105.9,1.647]
[1773394957354,0.004,2106.0,2105.9,2.83414088]
[1773394957554,0.002,2106.0,2105.9,3.29705936]
[1773394958074,0.002,2106.0,2105.9,2.10991848]
[1773394958574,0.002,2106.0,2105.9,3.29705936]
[1773394962560,0.002,2106.0,2105.9,2.10991848]
[1773394962761,0.002,2106.0,2105.9,3.29705936]
[1773394963477,0.002,2106.0,2105.9,3.34454499]
[1773394964775,0.002,2106.0,2105.9,2.88162651]
[1773394964946,0.002,2106.0,2105.9,1.69448563]
[1773394965377,0.002,2106.0,2105.9,2.88162651]
[1773394967380,0.002,2106.0,2105.9,3.34454499]
[1773394968058,0.002,2106.0,2105.9,2.88162651]
[1773394968958,0.002,2106.0,2105.9,3.34454499]
[1773394969160,0.002,2106.2,2106.0,0.46091848]
[1773394969409,0.002,2106.1,2106.0,0.46091848]
[1773394969687,0.002,2106.2,2105.9,2.88162651]
[1773394969904,0.002,2106.1,2105.9,3.34254499]
[1773394973693,0.002,2106.1,2105.9,1.69554499]
[1773394973861,0.002,2106.1,2106.0,1.651]
[1773394975055,0.48427746,2106.2,2106.0,2.83808452]
[1773394975284,0.469256,2106.1,2105.8,0.001]
[1773394975486,0.469256,2106.1,2105.6,1.18729109]
[1773394975665,0.49298582,2106.1,2105.9,1.652]
[1773394975989,0.49298582,2106.1,2105.6,1.18729109]
[1773394976289,0.49298582,2106.1,2105.7,0.45864757]
[1773394976491,0.49298582,2106.1,2105.7,0.50613771]
[1773394976863,0.469256,2106.1,2105.7,0.50613771]
[1773394977073,0.002,2106.1,2105.9,1.64578845]
[1773394977273,0.002,2106.1,2105.9,1.69327408]
[1773394977462,0.002,2106.1,2106.0,0.45864757]
[1773394978589,0.002,2106.1,2105.9,1.18714088]
[1773394979169,0.469256,2106.1,2105.6,2.44730367]
[1773394979373,0.49298582,2106.1,2105.7,1.654]
[1773394979591,0.49298582,2106.1,2105.7,2.11264757]
[1773394979790,0.469256,2106.1,2105.7,2.11264757]
[1773394980092,0.469256,2106.1,2105.8,0.45864757]
[1773394980489,0.002,2105.9,2105.8,1.26002643]
[1773394980668,0.002,2106.1,2105.9,0.45964757]
[1773394981176,0.004,2106.1,2106.0,1.18708452]
[1773394981378,0.004,2106.1,2105.9,1.18810436]
[1773394981379,0.471256,2106.1,2105.9,1.18810436]
[1773394982970,0.471256,2106.1,2105.9,0.001]
[1773394983177,0.471256,2106.1,2106.0,1.656]
[1773394983371,0.471256,2106.1,2105.7,5.2075447]
[1773394983372,0.471256,2106.1,2105.8,1.187168]
[1773394983577,0.471256,2106.1,2105.7,1.18721218]
[1773394983781,0.49498582,2106.1,2105.7,1.22629372]
[1773394984689,0.49498582,2106.1,2105.8,1.657]
[1773394985067,0.471256,2106.1,2105.8,1.657]
[1773394985294,0.471256,2106.1,2105.8,2.8441629]
[1773394987170,0.471256,2106.1,2105.8,2.84418164]
[1773394988397,0.469256,2106.1,2105.8,2.84418164]
[1773394988602,0.469256,2106.0,2105.8,2.84418164]
[1773394989588,0.002,2106.0,2105.8,3.30282921]
[1773394989892,0.002,2106.0,2105.9,0.45864757]
[1773394990793,0.002,2106.0,2105.9,0.49772539]
[1773394992104,0.002,2106.0,2105.9,1.68486627]
[1773394992281,0.002,2106.2,2105.9,1.2262187]
[1773394992480,0.002,2106.4,2106.1,0.45864757]
[1773394992677,0.002,2106.4,2106.2,1.662]
[1773394994803,0.002,2106.4,2106.1,1.64564016]
[1773394994804,0.49298582,2106.4,2106.3,1.663]
[1773394994971,0.49298582,2106.4,2106.0,1.18808221]
[1773394995301,0.49298582,2106.4,2106.0,0.001]
[1773394996179,0.467256,2106.3,2106.1,1.664]
[1773394998708,0.02572982,2106.4,2106.1,2.85102534]
[1773394998887,0.02572982,2106.4,2106.1,3.30967291]
[1773394999090,0.02572982,2106.4,2106.1,2.12264757]
[1773394999490,0.49298582,2106.4,2106.1,2.12264757]
[1773395000701,0.49298582,2106.4,2106.1,3.30965666]
[1773395001006,0.002,2106.4,2106.2,0.4524689]
[1773395002479,0.002,2106.4,2106.2,1.63941732]
[1773395005401,0.002,2106.4,2106.3,0.4524689]
[1773395005601,0.002,2106.4,2106.1,3.30345622]
[1773395006385,0.002,2106.4,2106.3,0.001]
[1773395008090,0.48243417,2106.4,2106.3,0.001]
[1773395008498,0.48243417,2106.4,2106.3,1.671]
[1773395017518,0.002,2106.4,2106.3,1.671]
[1773395018932,0.002,2106.4,2106.3,3.31038434]
[1773395019123,0.48243417,2106.4,2106.3,1.671]
[1773395024231,0.002,2106.4,2106.3,1.671]
[1773395030627,0.002,2106.4,2106.3,3.3207801]
[1773395031143,0.002,2106.5,2106.4,0.48639774]
[1773395031440,0.02572982,2106.7,2106.4,1.28755569]
[1773395031605,0.002,2106.7,2106.5,0.48639774]
[1773395032429,0.002,2106.7,2106.5,0.48739774]
[1773395033703,0.50069253,2106.7,2106.5,0.001]
[1773395033911,0.49869253,2106.5,2106.4,1.679]
[1773395034129,0.49869253,2106.5,2106.3,0.001]
[1773395034328,0.49869253,2106.4,2106.3,0.001]
[1773395035411,0.49869253,2106.4,2106.3,1.681]
[1773395036619,0.02372982,2106.5,2106.3,1.681]
[1773395037222,1.68548477,2106.6,2106.3,1.681]
[1773395037518,0.49869253,2106.6,2106.3,2.86791349]
[1773395037714,0.49869253,2106.6,2106.3,3.35431016]
[1773395038308,0.50069253,2106.7,2106.4,0.48639774]
[1773395038514,0.002,2106.7,2106.5,1.67318994]
[1773395038910,0.02372982,2106.8,2106.5,1.67318994]
[1773395039113,0.49869253,2106.9,2106.6,0.48639774]
[1773395040426,0.49869253,2107.1,2106.7,0.48639774]
[1773395040718,1.53199888,2107.3,2106.8,0.48639774]
[1773395041051,1.53199888,2107.3,2106.9,1.682]
[1773395041052,0.49869253,2107.2,2106.9,1.682]
[1773395042620,0.49869253,2107.2,2106.9,2.16839774]
[1773395042816,0.3456014,2107.3,2106.9,3.35494026]
[1773395043021,0.84429393,2107.3,2107.0,0.48639774]
[1773395043230,0.3456014,2107.3,2107.1,0.48639774]
[1773395043443,0.49869253,2107.5,2107.1,0.48639774]
[1773395044343,0.49869253,2107.7,2107.1,0.48639774]
[1773395044528,0.49869253,2108.0,2107.4,0.48639774]
[1773395044725,4.74260082,2108.6,2106.9,2.86854252]
[1773395044726,0.1586775,2109.6,2108.2,0.48639774]
[1773395044925,7.09044354,2109.5,2108.4,0.80115795]
[1773395045266,7.09044354,2109.5,2108.5,1.683]
[1773395045427,0.49869253,2109.3,2108.5,1.683]
[1773395045622,6.26555577,2109.4,2108.6,0.48639774]
[1773395045623,0.02372982,2109.2,2108.6,0.48639774]
[1773395045837,0.49869253,2109.2,2108.6,0.48639774]
[1773395046032,0.02372982,2109.1,2108.6,0.48639774]
[1773395046347,1.34373836,2109.6,2108.7,0.48639774]
[1773395046348,0.49869253,2109.4,2108.7,0.48639774]
[1773395046644,0.49869253,2109.4,2108.6,0.80115795]
[1773395046645,0.49869253,2109.4,2108.9,0.48639774]
[1773395046844,1.18522732,2109.3,2108.9,0.48639774]
[1773395047046,7.45078309,2109.3,2108.9,0.48639774]
[1773395047422,6.26555577,2109.3,2108.9,0.48639774]
[1773395047622,1.18519502,2109.4,2109.1,0.48639774]
[1773395047845,7.45075079,2109.4,2109.2,1.679]
[1773395048156,0.49869253,2109.2,2108.2,0.01988098]
[1773395048443,0.49869253,2108.7,2108.2,0.01988098]
[1773395048643,0.49869253,2108.5,2108.2,0.01988098]
[1773395048851,1.18578949,2108.3,2108.2,0.01988098]
[1773395049057,1.18578949,2108.3,2108.0,1.68]
[1773395049259,7.16810939,2108.3,2108.0,1.68]
[1773395049763,7.19183921,2108.3,2108.0,1.68]
[1773395050558,7.16810939,2108.3,2108.0,1.68]
[1773395050956,4.74231026,2108.7,2108.0,2.16639774]
[1773395051139,1.18562079,2108.6,2108.1,0.48639774]
[1773395052630,13.09670424,2108.6,2108.1,0.48639774]
[1773395052835,7.16794069,2108.6,2108.1,0.48639774]
[1773395053034,13.12043406,2108.6,2108.2,1.685]
[1773395053356,13.09670424,2108.6,2108.2,1.685]
[1773395054963,13.09670424,2108.6,2108.2,2.17139774]
[1773395055461,1.18562079,2108.6,2108.3,0.48639774]
[1773395055659,1.2093243,2108.7,2108.3,0.48639774]
[1773395055831,13.12040775,2108.7,2108.3,0.48639774]
[1773395056039,0.49869253,2108.5,2108.2,1.687]
[1773395056233,0.49869253,2108.5,2107.9,0.48639774]
[1773395056234,0.52242235,2108.5,2107.9,0.48639774]
[1773395056466,0.49869253,2108.3,2107.9,1.687]
[1773395056642,0.52242235,2108.3,2107.9,1.687]
[1773395057159,11.91108345,2108.2,2107.9,1.687]
[1773395057656,1.18590199,2108.1,2107.9,1.687]
[1773395058161,1.18590199,2108.1,2107.5,0.74293538]
[1773395058162,0.49869253,2108.0,2107.5,0.74293538]
[1773395058334,12.40977598,2108.0,2107.5,2.43093538]
[1773395058659,11.91108345,2108.0,2107.6,0.48639774]
[1773395059062,5.9823199,2107.9,2107.6,0.48639774]
[1773395059238,5.9823199,2107.9,2107.7,1.688]
[1773395059651,1.18607078,2107.8,2107.7,1.688]
[1773395060764,13.09715423,2107.8,2107.6,1.688]
[1773395061062,13.09715423,2107.8,2107.5,0.25653764]
[1773395061063,11.91108345,2107.7,2107.5,0.25653764]
[1773395061262,11.91108345,2107.7,2107.5,1.94453764]
[1773395062262,7.11494311,2107.7,2107.5,1.94453764]
[1773395063264,7.11494311,2107.7,2107.5,0.25653764]
[1773395063437,7.11494311,2107.7,2107.5,1.94453764]
[1773395066264,11.91108345,2107.6,2107.5,1.94453764]
[1773395066842,11.91108345,2107.6,2107.5,1.84387486]
[1773395068169,13.09726678,2107.6,2107.5,1.84387486]
[1773395069188,13.09726678,2107.6,2107.3,0.62411029]
[1773395069862,12.73594081,2107.6,2107.3,0.62411029]
[1773395070070,4.74456679,2107.7,2107.2,0.62411029]
[1773395070266,11.30100863,2107.7,2107.3,1.687]
[1773395070441,3.56996271,2107.7,2107.3,1.687]
[1773395070647,1.18607078,2107.8,2107.4,0.62411029]
[1773395071875,1.18607078,2107.8,2107.7,0.001]
[1773395072174,4.74407899,2107.9,2107.7,0.001]
[1773395072355,5.36903664,2107.9,2107.7,0.001]
[1773395072749,5.36903664,2107.9,2107.7,1.688]
[1773395074664,5.36903664,2107.9,2107.7,1.687]
[1773395077173,0.64868747,2107.8,2107.5,0.62511029]
[1773395078075,0.02372982,2107.8,2107.5,0.62511029]
[1773395078282,4.74407899,2107.9,2107.5,0.62511029]
[1773395078283,4.76780881,2107.9,2107.6,1.686]
[1773395078461,4.76780881,2107.9,2107.6,2.31011029]
[1773395079154,5.39276646,2107.9,2107.6,2.31011029]
[1773395080258,0.62495765,2107.8,2107.6,1.686]
[1773395080858,1.20974433,2107.9,2107.7,0.62411029]
[1773395081053,1.18601451,2107.9,2107.6,2.31011029]
[1773395081668,1.18599349,2108.0,2107.7,0.62411029]
[1773395083265,0.64868747,2107.9,2107.5,0.62511029]
[1773395083466,0.64868747,2107.9,2107.6,2.31011029]
[1773395083693,1.18599349,2108.0,2107.7,0.62411029]
[1773395083986,0.62495765,2108.5,2107.9,0.62411029]
[1773395084283,0.62495765,2108.9,2108.1,0.62411029]
[1773395084487,0.62495765,2108.9,2108.2,2.31011029]
[1773395084655,0.62495765,2108.9,2108.3,0.62411029]
[1773395084862,0.64868747,2108.8,2108.3,0.62411029]
[1773395085587,1.98545039,2108.7,2108.3,0.62411029]
[1773395085781,0.02372982,2108.6,2108.3,0.62411029]
[1773395085985,1.20929438,2108.7,2108.3,0.62411029]
[1773395086187,1.18552294,2108.8,2108.5,0.82131509]
[1773395086379,2.00913859,2108.8,2108.5,0.82131509]
[1773395086892,0.79988583,2109.0,2108.5,0.82131509]
[1773395087189,0.02372982,2108.9,2108.5,0.82131509]
[1773395087777,1.20919769,2108.9,2108.5,0.82131509]
[1773395088087,0.79988583,2108.5,2107.9,0.001]
[1773395088275,0.79988583,2108.3,2107.9,0.001]
[1773395088479,0.02372982,2108.2,2108.0,1.8917165]
[1773395088871,0.79988583,2108.5,2108.1,1.8917165]
[1773395089065,0.79988583,2108.5,2107.9,0.86975566]
[1773395089262,0.79988583,2108.5,2108.0,1.686]
[1773395089586,1.18573325,2108.4,2108.0,3.5777165]
[1773395089796,1.18573325,2108.4,2108.0,4.39903159]
[1773395091478,0.02372982,2108.4,2108.1,1.8917165]
[1773395091692,2.04053859,2108.5,2108.1,1.8917165]
[1773395091886,2.04053859,2108.5,2108.2,1.8917165]
[1773395092197,2.04053859,2108.5,2108.0,2.50731509]
[1773395092383,2.04052079,2108.5,2108.1,2.71069906]
[1773395093881,2.04052079,2108.5,2108.2,1.8917165]
[1773395095092,0.83109749,2108.4,2107.9,0.001]
[1773395095292,0.83109749,2108.2,2108.0,1.688]
[1773395096300,0.83109749,2108.2,2108.1,1.684]
[1773395096301,2.01699743,2108.2,2108.1,1.684]
[1773395097174,2.01699743,2108.2,2107.9,0.001]
[1773395098307,2.01699743,2108.2,2108.0,1.685]
[1773395098810,2.01699743,2108.2,2107.9,0.001]
[1773395098988,2.01699743,2108.2,2108.0,1.685]
[1773395100201,1.91733712,2108.2,2108.0,1.685]
[1773395100600,0.83109749,2108.1,2107.6,0.001]
[1773395102500,2.01705574,2108.0,2107.6,0.001]
[1773395102702,2.01705574,2108.0,2107.7,1.684]
[1773395103972,2.01705574,2108.0,2107.6,0.001]
[1773395104179,2.01705574,2108.0,2107.7,1.684]
[1773395104376,2.01705574,2108.0,2107.8,0.001]
[1773395105096,0.83109749,2107.9,2107.8,0.001]
[1773395107105,1.18601451,2107.9,2107.8,0.001]
[1773395108095,1.18601451,2107.9,2107.7,0.81898256]
[1773395108298,2.01709892,2108.0,2107.7,0.81898256]
[1773395108604,1.1857714,2108.4,2107.9,0.81898256]
[1773395109390,2.01686889,2108.4,2107.9,0.81898256]
[1773395109985,0.83109749,2108.2,2107.6,0.001]
[1773395110182,0.83109749,2108.2,2107.7,1.684]
[1773395110379,0.83109749,2108.2,2107.6,0.001]
[1773395111077,0.83109749,2108.2,2107.4,0.001]
[1773395111078,0.83109749,2108.0,2107.4,0.001]
[1773395111281,0.83109749,2107.9,2107.4,0.001]
[1773395111685,0.83109749,2107.7,2106.5,1.43117264]
[1773395111887,0.83109749,2107.6,2106.9,1.68]
[1773395112183,0.83109749,2107.6,2106.5,1.43117264]